bitfinex/quotes_SOLUSD_20250206
["timestamp","ask_amount","ask_price","bid_price","bid_amount"]
[1738809349899,6.6038,200.57,200.5,23.89659148]
[1738809350205,0.063,200.57,200.5,23.89659148]
[1738809350401,0.063,200.57,200.5,24.64447409]
[1738809350718,5.0487,200.57,200.5,24.64447409]
[1738809350885,5.0487,200.57,200.5,23.89659148]
[1738809351090,23.89659148,200.53,200.47,82.0]
[1738809351398,23.89659148,200.51,200.45,6.4198]
[1738809351599,23.89659148,200.51,200.45,123.9198]
[1738809352208,23.89659148,200.51,200.45,117.5]
[1738809352709,28.88389148,200.51,200.45,117.5]
[1738809355907,23.89659148,200.51,200.45,117.5]
[1738809356410,28.88349148,200.53,200.45,204.4887]
[1738809356795,28.94549148,200.57,200.49,0.12549]
[1738809357111,0.063,200.57,200.51,0.12549]
[1738809360306,23.89659148,200.55,200.49,199.5]
[1738809360498,23.89659148,200.53,200.49,199.5]
[1738809361091,0.063,200.57,200.44,223.39659148]
[1738809361092,23.89659148,200.51,200.44,223.39659148]
[1738809361423,23.89659148,200.51,200.45,0.12549]
[1738809362522,23.89659148,200.47,200.45,199.5]
[1738809362704,23.89659148,200.47,200.43,0.03]
[1738809363028,23.89659148,200.44,200.43,0.03]
[1738809364892,23.89659148,200.46,200.43,0.03]
[1738809365094,23.89659148,200.48,200.43,0.03]
[1738809365319,23.89659148,200.5,200.43,117.53]
[1738809366429,23.89659148,200.52,200.44,24.8957564]
[1738809366728,23.89659148,200.56,200.48,24.02208148]
[1738809366891,23.89659148,200.56,200.48,141.52208148]
[1738809367087,23.89659148,200.56,200.5,0.12549]
[1738809367394,5.0489,200.57,200.52,24.02208148]
[1738809367395,0.063,200.57,200.52,24.02208148]
[1738809368124,0.063,200.57,200.52,0.12549]
[1738809368423,0.063,200.57,200.51,0.74792017]
[1738809368726,0.063,200.57,200.51,0.74796507]
[1738809371020,0.063,200.57,200.52,0.12549]
[1738809371218,0.063,200.57,200.5,117.5]
[1738809371219,23.89659148,200.56,200.5,117.5]
[1738809371529,23.89659148,200.54,200.5,117.5]
[1738809372303,23.89659148,200.56,200.5,117.5]
[1738809372494,23.89659148,200.54,200.5,117.5]
[1738809372923,0.063,200.57,200.5,117.5]
[1738809372924,23.89659148,200.52,200.5,117.5]
[1738809373299,23.89659148,200.52,200.49,82.0]
[1738809373602,23.89659148,200.52,200.46,117.5]
[1738809373603,23.89659148,200.5,200.46,117.5]
[1738809373797,23.89659148,200.48,200.46,117.5]
[1738809374017,23.89659148,200.48,200.44,82.03]
[1738809374221,23.89659148,200.45,200.44,0.03]
[1738809375407,28.88529148,200.45,200.44,0.03]
[1738809375607,23.89659148,200.47,200.44,0.03]
[1738809377525,23.89659148,200.48,200.44,0.03]
[1738809377727,23.89659148,200.5,200.44,117.53]
[1738809377911,28.88379148,200.52,200.44,141.42659148]
[1738809378115,23.89659148,200.51,200.44,117.53]
[1738809378806,23.89659148,200.51,200.45,0.87360963]
[1738809379511,23.89659148,200.51,200.45,0.12549]
[1738809380126,23.89659148,200.51,200.45,199.75098]
[1738809380328,28.94549148,200.57,200.49,23.89659148]
[1738809380534,28.94549148,200.57,200.49,223.39659148]
[1738809381400,23.89659148,200.55,200.49,199.5]
[1738809382528,23.95959148,200.57,200.5,0.99892773]
[1738809382731,0.063,200.57,200.52,0.25098]
[1738809382902,0.063,200.57,200.56,0.12549]
[1738809383104,0.063,200.57,200.56,123.48463123]
[1738809383302,0.063,200.57,200.56,122.73698]
[1738809383546,0.063,200.57,200.56,117.75098]
[1738809385428,0.063,200.57,200.56,117.62549]
[1738809385915,0.063,200.57,200.56,117.5]
[1738809388036,23.95959148,200.57,200.56,117.5]
[1738809389027,4.986,200.56,200.5,20.0]
[1738809389235,23.89659148,200.54,200.5,137.5]
[1738809389732,23.89659148,200.53,200.48,117.62549]
[1738809389936,23.89659148,200.49,200.48,117.5]
[1738809390122,23.89659148,200.49,200.44,117.53]
[1738809390322,23.89659148,200.46,200.44,0.03]
[1738809391205,18.45373009,200.53,200.45,24.02208148]
[1738809391206,23.89659148,200.52,200.45,24.02208148]
[1738809391410,23.89659148,200.52,200.45,24.77017107]
[1738809391839,23.89659148,200.52,200.46,0.12549]
[1738809392052,23.89659148,200.54,200.47,23.89659148]
[1738809392245,23.89659148,200.54,200.47,141.39659148]
[1738809392411,23.89659148,200.54,200.47,117.5]
[1738809392609,23.89659148,200.5,200.47,117.5]
[1738809392915,23.89659148,200.5,200.44,117.53]
[1738809393512,23.89659148,200.48,200.44,117.53]
[1738809393716,23.89659148,200.48,200.44,0.03]
[1738809394649,28.88369148,200.52,200.44,0.15549]
[1738809394850,0.063,200.51,200.44,0.15549]
[1738809395039,23.89659148,200.5,200.44,0.15549]
[1738809395515,0.063,200.51,200.45,23.89659148]
[1738809396149,23.89659148,200.5,200.44,0.15549]
[1738809396641,23.89659148,200.5,200.44,0.03]
[1738809396827,23.89659148,200.5,200.44,0.15549]
[1738809397148,0.063,200.51,200.44,0.90366348]
[1738809397447,0.063,200.51,200.45,23.89659148]
[1738809397946,0.063,200.51,200.45,199.5]
[1738809399152,23.89659148,200.5,200.45,199.5]
[1738809399328,23.89659148,200.48,200.45,199.5]
[1738809399528,23.89659148,200.46,200.45,199.5]
[1738809400039,23.89659148,200.48,200.45,199.5]
[1738809401681,28.88459148,200.48,200.45,199.5]
[1738809403385,23.89659148,200.46,200.44,0.03]
[1738809404862,28.88459148,200.48,200.44,0.03]
[1738809405654,23.89659148,200.45,200.44,0.03]
[1738809406081,37.30844001,200.45,200.44,0.03]
[1738809406676,23.89659148,200.45,200.44,0.03]
[1738809407335,32.52964853,200.48,200.44,0.03]
[1738809407336,23.89659148,200.46,200.44,0.03]
[1738809407535,23.89659148,200.45,200.44,0.03]
[1738809417650,28.88469148,200.48,200.44,0.03]
[1738809418665,23.89659148,200.47,200.44,0.03]
[1738809419066,4.9877,200.49,200.44,0.03]
[1738809419373,23.89659148,200.45,200.44,0.03]
[1738809420443,23.89659148,200.46,200.44,0.03]
[1738809420645,23.89659148,200.45,200.44,0.03]
[1738809420859,28.88529148,200.45,200.44,0.03]
[1738809421543,42.29714001,200.45,200.44,0.0001]
[1738809421759,28.88529148,200.45,200.44,0.0001]
[1738809422670,19.92384089,200.45,200.44,0.0001]
[1738809423774,4.9887,200.45,200.44,0.0001]
[1738809424348,19.92384089,200.45,200.44,0.0001]
[1738809424545,33.46117942,200.45,200.44,0.0001]
[1738809424749,42.43188651,200.45,200.44,0.0001]
[1738809427451,42.68286651,200.45,200.44,0.0001]
[1738809427656,20.0,200.42,200.34,0.03]
[1738809427861,23.90584798,200.36,200.34,0.03]
[1738809428459,23.90584798,200.38,200.34,0.03]
[1738809429266,13.41184853,200.41,200.34,0.03]
[1738809429267,23.90584798,200.36,200.34,0.03]
[1738809430181,23.90584798,200.35,200.34,0.03]
[1738809431160,23.90584798,200.38,200.34,0.03]
[1738809431377,4.06,200.42,200.34,23.93584798]
[1738809431378,23.90584798,200.42,200.34,23.93584798]
[1738809431579,23.90584798,200.42,200.35,23.90584798]
[1738809432271,28.89554798,200.42,200.35,23.90584798]
[1738809432483,0.063,200.45,200.38,0.12549]
[1738809432690,0.063,200.45,200.39,23.90584798]
[1738809432986,0.063,200.45,200.41,23.90584798]
[1738809433684,0.063,200.45,200.39,141.40584798]
[1738809435466,0.063,200.45,200.39,117.5]
[1738809435863,0.063,200.45,200.39,141.40584798]
[1738809436071,0.063,200.45,200.43,23.90584798]
[1738809436380,0.063,200.45,200.43,141.40584798]
[1738809436965,0.063,200.45,200.43,117.5]
[1738809439360,23.90584798,200.44,200.39,82.0]
[1738809439564,0.063,200.45,200.39,82.0]
[1738809439565,23.90584798,200.42,200.39,82.0]
[1738809441275,28.89534798,200.42,200.39,82.0]
[1738809441590,23.90584798,200.4,200.39,82.0]
[1738809441774,23.90584798,200.4,200.36,117.5]
[1738809442186,23.90584798,200.38,200.34,0.03]
[1738809443263,23.90584798,200.35,200.34,0.03]
[1738809445071,23.90584798,200.36,200.34,0.03]
[1738809446699,19.93887029,200.37,200.34,0.03]
[1738809447199,14.94807029,200.39,200.34,0.03]
[1738809447401,14.94807029,200.41,200.34,0.03]
[1738809447780,14.94807029,200.39,200.34,0.03]
[1738809448193,14.94807029,200.36,200.34,0.03]
[1738809449395,14.94807029,200.4,200.34,0.03]
[1738809450380,0.18849,200.45,200.34,0.03]
[1738809450381,14.94807029,200.38,200.34,0.03]
[1738809450775,14.94807029,200.36,200.34,0.03]
[1738809452706,14.94807029,200.35,200.34,0.03]
[1738809453674,28.35991882,200.35,200.34,0.03]
[1738809454173,0.12549,200.33,200.3,0.03]
[1738809454372,14.94807029,200.31,200.3,0.03]
[1738809454783,19.94027029,200.31,200.3,0.03]
[1738809454984,14.94807029,200.32,200.3,0.03]
[1738809456501,19.94017029,200.32,200.3,0.03]
[1738809457702,14.94807029,200.33,200.3,0.03]
[1738809458084,4.9915,200.34,200.3,0.03]
[1738809458288,4.991,200.36,200.3,0.03]
[1738809460605,19.93877029,200.38,200.31,14.94807029]
[1738809460806,21.46037029,200.4,200.33,14.94807029]
[1738809461010,4.9902,200.4,200.33,132.44807029]
[1738809461195,4.9902,200.4,200.35,14.94807029]
[1738809461381,12.4729,200.44,200.35,14.94807029]
[1738809461382,14.94807029,200.43,200.35,14.94807029]
[1738809461708,14.94807029,200.42,200.35,14.94807029]
[1738809462011,14.94807029,200.41,200.33,132.44807029]
[1738809462707,14.94807029,200.41,200.33,137.43977029]
[1738809462880,14.94807029,200.4,200.33,132.44807029]
[1738809463409,19.93807029,200.4,200.33,132.44807029]
[1738809463708,14.94807029,200.39,200.33,117.5]
[1738809464807,14.94807029,200.38,200.33,117.5]
[1738809465012,14.94807029,200.38,200.3,0.03]
[1738809465013,14.94807029,200.34,200.3,0.03]
[1738809465195,14.94807029,200.33,200.3,0.03]
[1738809466599,19.93977029,200.33,200.3,0.03]
[1738809466904,14.94807029,200.35,200.3,0.03]
[1738809467404,14.94807029,200.36,200.3,0.03]
[1738809468213,14.94807029,200.4,200.33,14.94807029]
[1738809468401,19.93797029,200.41,200.34,14.94807029]
[1738809468706,14.94807029,200.4,200.33,14.94807029]
[1738809469801,4.9899,200.41,200.33,132.44807029]
[1738809469802,19.93797029,200.41,200.33,132.44807029]
[1738809470113,15.01107029,200.44,200.36,14.94807029]
[1738809470414,15.01107029,200.44,200.38,14.94807029]
[1738809470593,0.063,200.44,200.38,141.39474135]
[1738809471016,4.9892,200.43,200.38,117.5]
[1738809471198,23.89474135,200.42,200.38,117.5]
[1738809471507,23.89474135,200.4,200.34,23.89474135]
[1738809471814,23.89474135,200.4,200.33,117.5]
[1738809471815,28.88494135,200.4,200.33,117.5]
[1738809472003,28.88494135,200.4,200.32,141.39474135]
[1738809473811,23.89474135,200.38,200.32,117.5]
[1738809474219,23.89474135,200.4,200.32,117.5]
[1738809474597,23.89474135,200.38,200.32,117.5]
[1738809478803,28.88484135,200.4,200.32,117.5]
[1738809480718,23.89474135,200.4,200.33,5.11709]
[1738809480916,0.12549,200.43,200.33,5.11709]
[1738809480917,5.0521,200.44,200.37,23.89474135]
[1738809482625,0.063,200.44,200.4,23.89474135]
[1738809482819,23.95774135,200.44,200.38,117.5]
[1738809483821,23.89474135,200.42,200.38,117.5]
[1738809484036,23.89474135,200.4,200.33,117.5]
[1738809484325,23.89474135,200.38,200.32,117.5]
[1738809484901,28.88534135,200.38,200.32,117.5]
[1738809485210,15.06734853,200.43,200.34,23.89474135]
[1738809485211,23.89474135,200.41,200.34,23.89474135]
[1738809486532,23.89474135,200.43,200.36,23.89474135]
[1738809486693,5.0522,200.44,200.36,23.89474135]
[1738809486899,23.89474135,200.43,200.36,23.89474135]
[1738809487102,23.89474135,200.43,200.35,0.12549]
[1738809487627,23.89474135,200.41,200.34,23.89474135]
[1738809487930,23.89474135,200.39,200.32,146.38664135]
[1738809488729,23.89474135,200.39,200.32,141.39474135]
[1738809489119,23.89474135,200.39,200.32,117.5]
[1738809489701,23.89474135,200.39,200.32,117.53]
[1738809489925,0.12549,200.42,200.32,146.41664135]
[1738809489926,23.89474135,200.41,200.32,146.41664135]
[1738809490227,23.89474135,200.39,200.32,223.42474135]
[1738809490435,23.89474135,200.39,200.32,199.53]
[1738809490608,14.94680924,200.38,200.32,199.53]
[1738809491826,19.93730924,200.38,200.32,199.53]
[1738809495732,0.063,200.44,200.37,0.12549]
[1738809496031,0.063,200.44,200.38,14.94680924]
[1738809496328,0.063,200.44,200.38,132.44680924]
[1738809498314,0.063,200.44,200.4,14.94680924]
[1738809500748,0.063,200.44,200.41,0.25098]
[1738809500912,0.063,200.44,200.43,0.25098]
[1738809501112,0.063,200.44,200.43,117.5]
[1738809501721,0.063,200.44,200.43,117.75098]
[1738809501920,0.063,200.44,200.43,213.28831853]
[1738809502210,0.063,200.44,200.43,213.41380853]
[1738809502211,0.0001,200.44,200.43,213.41380853]
[1738809502417,0.0001,200.44,200.43,218.40300853]
[1738809504035,0.0001,200.44,200.43,530.40300853]
[1738809504845,0.0001,200.44,200.43,530.15202853]
[1738809505013,0.0001,200.44,200.43,204.74018]
[1738809506937,0.0001,200.44,200.43,199.62549]
[1738809507964,0.0001,200.44,200.43,199.5]
[1738809512171,0.0001,200.44,200.43,199.62549]
[1738809513447,0.0001,200.44,200.43,199.5]
[1738809514076,0.0001,200.44,200.4,132.44680924]
[1738809516670,0.0001,200.44,200.4,137.46680924]
[1738809516871,0.0001,200.44,200.42,14.94680924]
[1738809518887,0.0001,200.44,200.43,0.12549]
[1738809519179,0.0001,200.44,200.43,0.9991582]
[1738809519762,0.0001,200.44,200.43,200.4991582]
[1738809519957,0.0001,200.44,200.43,199.75098]
[1738809520378,0.0001,200.44,200.43,199.5]
[1738809523365,0.0001,200.44,200.43,199.75098]
[1738809524189,0.0001,200.44,200.43,204.74018]
[1738809527200,0.0001,200.44,200.43,199.62549]
[1738809527490,0.0001,200.44,200.43,199.5]
[1738809529595,0.0001,200.44,200.43,199.53]
[1738809531303,0.0001,200.44,200.43,204.64469]
[1738809534388,0.0001,200.44,200.43,199.53]
[1738809537702,0.0001,200.44,200.43,82.03]
[1738809538510,0.0001,200.44,200.43,82.28098]
[1738809538800,0.0001,200.44,200.43,83.02910943]
[1738809539797,0.0001,200.44,200.43,82.28098]
[1738809540194,0.0001,200.44,200.43,82.03]
[1738809540996,14.94690924,200.44,200.43,0.03]
[1738809542586,19.93590924,200.44,200.43,0.03]
[1738809542905,21.45860924,200.44,200.43,0.03]
[1738809543278,21.58409924,200.44,200.43,0.03]
[1738809547611,34.99594777,200.44,200.43,0.03]
[1738809547982,34.99594777,200.44,200.43,0.0001]
[1738809548177,36.24685786,200.44,200.43,0.0001]
[1738809548411,20.0,200.41,200.4,0.03]
[1738809548732,34.94680924,200.41,200.4,0.03]
[1738809548916,48.35865777,200.41,200.4,0.03]
[1738809549284,0.12549,200.4,200.34,0.03]
[1738809549490,14.94680924,200.35,200.34,0.03]
[1738809551118,19.93800924,200.35,200.34,0.03]
[1738809551609,20.06349924,200.35,200.34,0.03]
[1738809551816,21.65689924,200.35,200.34,0.03]
[1738809552716,35.06874777,200.35,200.34,0.03]
[1738809552908,21.53140924,200.35,200.34,0.03]
[1738809553217,19.93760924,200.37,200.34,0.03]
[1738809553585,14.94680924,200.36,200.34,0.03]
[1738809554431,19.93760924,200.37,200.34,0.03]
[1738809554718,4.9908,200.37,200.34,0.03]
[1738809555420,14.94680924,200.37,200.34,0.03]
[1738809558221,14.94680924,200.38,200.34,0.03]
[1738809558515,4.9895,200.42,200.36,14.94680924]
[1738809558720,19.93610924,200.44,200.36,14.94680924]
[1738809559092,14.94680924,200.42,200.34,132.47680924]
[1738809559504,14.94680924,200.4,200.34,117.53]
[1738809561313,19.93700924,200.4,200.34,117.53]
[1738809561702,14.94680924,200.42,200.35,0.12549]
[1738809561894,14.94680924,200.42,200.35,0.87394875]
[1738809562100,14.94680924,200.42,200.35,0.12549]
[1738809562706,14.94680924,200.4,200.34,117.53]
[1738809562927,14.94680924,200.38,200.34,117.53]
[1738809563389,19.93750924,200.38,200.34,117.53]
[1738809564310,19.93750924,200.38,200.34,0.03]
[1738809567302,14.94680924,200.36,200.34,0.03]
[1738809568330,14.94680924,200.38,200.34,0.03]
[1738809568504,15.00980924,200.4,200.34,0.03]
[1738809568698,0.063,200.4,200.34,14.97680924]
[1738809569803,0.063,200.4,200.34,19.96820924]
[1738809569997,0.063,200.4,200.34,14.97680924]
[1738809573235,0.063,200.4,200.34,132.47680924]
[1738809573613,0.063,200.4,200.36,14.94680924]
[1738809573816,0.063,200.4,200.38,14.94680924]
[1738809577907,0.063,200.4,200.39,0.12549]
[1738809578116,0.063,200.4,200.39,199.62549]
[1738809580632,0.063,200.4,200.39,204.61569]
[1738809582545,0.063,200.4,200.39,204.74118]
[1738809582756,0.063,200.4,200.39,214.29722092]
[1738809585350,0.063,200.4,200.39,227.70906945]
[1738809585538,0.063,200.4,200.39,227.83455945]
[1738809586277,0.063,200.4,200.39,214.17173092]
[1738809586425,0.063,200.4,200.39,199.62549]
[1738809587352,0.063,200.4,200.39,82.0]
[1738809587652,9.61904092,200.4,200.35,117.5]
[1738809587951,9.61904092,200.4,200.34,117.53]
[1738809588343,9.55604092,200.38,200.34,0.03]
[1738809590144,4.9907,200.37,200.34,0.03]
[1738809590856,19.93744913,200.37,200.34,0.03]
[1738809592759,14.94674913,200.39,200.34,0.03]
[1738809593957,4.9905,200.38,200.34,0.03]
[1738809594156,19.93724913,200.38,200.34,0.03]
[1738809594532,14.94674913,200.37,200.34,0.03]
[1738809594756,14.94674913,200.35,200.34,0.03]
[1738809595956,4.9905,200.38,200.34,0.03]
[1738809595957,14.94674913,200.37,200.34,0.03]
[1738809596279,19.93724913,200.38,200.34,0.03]
[1738809596463,14.94674913,200.37,200.34,0.03]
[1738809597075,14.94674913,200.36,200.34,0.03]
[1738809598633,4.9912,200.35,200.34,0.03]
[1738809599062,14.94674913,200.38,200.34,0.03]
[1738809599237,19.93724913,200.38,200.34,0.03]
[1738809601874,0.063,200.4,200.35,14.94674913]
[1738809602036,0.063,200.4,200.37,14.94674913]
[1738809602362,5.053,200.4,200.35,14.94674913]
[1738809602667,5.053,200.4,200.34,117.53]
[1738809603366,0.063,200.4,200.35,14.94674913]
[1738809606665,0.063,200.4,200.34,117.53]
[1738809606869,14.94674913,200.36,200.34,117.53]
[1738809607037,14.94674913,200.36,200.34,0.03]
[1738809608444,19.93774913,200.36,200.34,0.03]
[1738809611566,14.94674913,200.38,200.34,0.03]
[1738809611774,0.063,200.4,200.34,0.03]
[1738809611775,19.99974913,200.4,200.34,0.03]
[1738809612069,0.063,200.4,200.34,14.97674913]
[1738809612745,0.063,200.4,200.34,9.59160048]
[1738809614380,0.063,200.4,200.36,9.56160048]
[1738809615755,0.063,200.4,200.34,127.09160048]
[1738809615955,9.56160048,200.39,200.34,117.53]
[1738809616853,9.56160048,200.37,200.34,117.53]
[1738809617843,9.56160048,200.37,200.34,0.03]
[1738809618065,14.55230048,200.37,200.34,0.03]
[1738809622679,0.063,200.4,200.34,0.03]
[1738809623794,0.063,200.4,200.34,117.53]
[1738809624151,0.063,200.4,200.34,127.09160048]
[1738809626258,9.56160048,200.39,200.34,117.53]
[1738809627272,9.56160048,200.36,200.34,117.53]
[1738809627691,14.55210048,200.38,200.34,117.53]
[1738809629676,14.55210048,200.38,200.34,0.03]
[1738809630688,9.56160048,200.35,200.34,0.03]
[1738809633088,14.55280048,200.35,200.34,0.03]
[1738809634692,14.67829048,200.35,200.34,0.03]
[1738809635395,15.95512254,200.35,200.34,0.03]
[1738809635691,14.67829048,200.35,200.34,0.03]
[1738809637387,28.09013901,200.35,200.34,0.03]
[1738809641317,20.0,200.33,200.32,0.03]
[1738809641483,29.56160048,200.31,200.26,0.03]
[1738809641680,9.56160048,200.27,200.26,0.03]
[1738809641898,22.97344901,200.27,200.26,0.03]
[1738809642464,9.56160048,200.27,200.26,0.03]
[1738809643401,14.55480048,200.27,200.26,0.03]
[1738809647606,28.09213901,200.27,200.26,0.03]
[1738809650207,0.37647,200.26,200.23,0.03]
[1738809650395,9.93807048,200.26,200.25,0.0001]
[1738809652395,14.93157048,200.26,200.25,0.0001]
[1738809654813,14.68059048,200.26,200.25,0.0001]
[1738809655313,14.55510048,200.26,200.25,0.0001]
[1738809657521,14.55480048,200.28,200.25,0.0001]
[1738809657728,14.55430048,200.3,200.25,0.0001]
[1738809658205,14.61730048,200.3,200.25,0.0001]
[1738809659495,9.56160048,200.28,200.25,0.0001]
[1738809659691,9.56160048,200.26,200.25,0.0001]
[1738809659892,9.68709048,200.26,200.25,0.0001]
[1738809660119,23.09893901,200.26,200.25,0.0001]
[1738809660629,24.0988691,200.26,200.25,0.0001]
[1738809660832,33.41184853,200.24,200.23,0.0001]
[1738809661142,43.22442901,200.24,200.23,0.0001]
[1738809661423,0.25098,200.23,200.21,0.03]
[1738809661628,22.97344901,200.22,200.21,0.03]
[1738809662628,27.96794901,200.22,200.21,0.03]
[1738809662997,28.21892901,200.22,200.21,0.03]
[1738809663997,27.96794901,200.22,200.21,0.03]
[1738809668133,14.55610048,200.22,200.21,0.03]
[1738809668429,14.68159048,200.22,200.21,0.03]
[1738809669426,28.09343901,200.22,200.21,0.03]
[1738809669630,28.21892901,200.22,200.21,0.03]
[1738809670110,28.21892901,200.22,200.21,0.0001]
[1738809671210,28.09343901,200.22,200.21,0.0001]
[1738809675938,14.55610048,200.22,200.21,0.0001]
[1738809676238,0.063,200.23,200.21,0.0001]
[1738809678235,0.063,200.23,200.21,117.5001]
[1738809683139,0.063,200.23,200.21,0.0001]
[1738809688419,0.063,200.23,200.22,9.56160048]
[1738809689850,0.063,200.23,200.22,14.55610048]
[1738809690743,0.063,200.23,200.22,132.30708048]
[1738809691050,0.063,200.23,200.22,133.94548048]
[1738809691551,0.063,200.23,200.22,124.1329]
[1738809692318,0.063,200.23,200.22,119.1384]
[1738809693357,0.063,200.23,200.22,124.1329]
[1738809697663,0.063,200.23,200.21,0.0001]
[1738809697865,9.56160048,200.22,200.21,0.0001]
[1738809699164,0.063,200.23,200.21,0.0001]
[1738809708974,9.62460048,200.23,200.21,0.0001]
[1738809710477,4.9945,200.22,200.21,0.0001]
[1738809710979,9.62460048,200.23,200.21,0.0001]
[1738809713910,0.063,200.23,200.21,0.0001]
[1738809714559,14.61900048,200.23,200.21,0.0001]
[1738809714868,9.62460048,200.23,200.21,0.0001]
[1738809715078,0.063,200.23,200.21,0.0001]
[1738809720874,9.62460048,200.23,200.21,0.0001]
[1738809721687,0.063,200.23,200.21,0.0001]
[1738809722982,0.063,200.23,200.21,127.06170048]
[1738809723191,0.063,200.23,200.22,10.43606289]
[1738809724670,0.063,200.23,200.22,15.43056289]
[1738809724865,0.063,200.23,200.22,10.31057289]
[1738809725177,0.063,200.23,200.21,199.5001]
[1738809725756,0.063,200.23,200.21,214.05640048]
[1738809725957,0.063,200.23,200.22,9.56160048]
[1738809726264,0.063,200.23,200.21,214.05640048]
[1738809726585,0.063,200.23,200.22,9.81258048]
[1738809727789,0.063,200.23,200.22,127.31258048]
[1738809729394,0.063,200.23,200.22,127.18709048]
[1738809731490,0.063,200.23,200.22,127.31258048]
[1738809733700,0.063,200.23,200.22,209.31258048]
[1738809735982,0.063,200.23,200.22,199.5]
[1738809739013,9.62460048,200.23,200.21,0.0001]
[1738809740000,4.9945,200.22,200.21,0.0001]
[1738809740176,18.53183853,200.22,200.21,0.0001]
[1738809740700,18.65732853,200.22,200.21,0.0001]
[1738809741586,28.21892901,200.22,200.21,0.0001]
[1738809741973,66.46533093,200.22,200.21,0.0001]
[1738809742182,1.5435,200.17,200.13,0.03]
[1738809742393,9.56160048,200.14,200.13,0.03]
[1738809743307,14.55810048,200.14,200.13,0.03]
[1738809743598,27.96994901,200.14,200.13,0.03]
[1738809744602,28.09543901,200.14,200.13,0.03]
[1738809745597,27.96994901,200.14,200.13,0.03]
[1738809745981,9.56160048,200.14,200.13,0.03]
[1738809747599,9.56160048,200.15,200.13,0.03]
[1738809748003,14.55760048,200.16,200.13,0.03]
[1738809748201,9.56160048,200.17,200.13,0.03]
[1738809748709,14.55720048,200.18,200.13,0.03]
[1738809748886,9.56160048,200.19,200.13,0.03]
[1738809749305,9.56160048,200.18,200.13,0.03]
[1738809749707,9.56160048,200.19,200.13,0.03]
[1738809749914,14.55620048,200.22,200.14,9.56160048]
[1738809750115,0.063,200.23,200.17,9.56160048]
[1738809750494,14.61890048,200.23,200.15,10.31078602]
[1738809750799,14.61890048,200.23,200.15,9.56160048]
[1738809752087,9.56160048,200.21,200.15,117.5]
[1738809752289,9.56160048,200.19,200.15,117.5]
[1738809754317,14.55700048,200.19,200.15,117.5]
[1738809754614,9.56160048,200.19,200.15,117.5]
[1738809754822,9.56160048,200.22,200.15,127.06160048]
[1738809756613,19.96329863,200.22,200.15,117.5]
[1738809756818,14.96869863,200.22,200.16,14.96869863]
[1738809757491,0.063,200.23,200.16,133.21789443]
[1738809757693,0.063,200.23,200.16,214.46869863]
[1738809765418,0.063,200.23,200.17,0.74915518]
[1738809765721,0.063,200.23,200.2,14.96869863]
[1738809765925,0.063,200.23,200.22,14.96869863]
[1738809767999,0.063,200.23,200.22,15.21967863]
[1738809769329,0.063,200.23,200.22,240.49800716]
[1738809769828,0.063,200.3,200.26,20.25098]
[1738809769999,0.063,200.3,200.28,15.21967863]
[1738809770628,0.063,200.3,200.29,20.0]
[1738809772218,0.063,200.3,200.26,199.5]
[1738809772611,15.03169863,200.3,200.26,199.5]
[1738809773526,20.02419863,200.3,200.26,199.5]
[1738809774744,14.96869863,200.27,200.22,117.5]
[1738809774916,14.96869863,200.24,200.22,117.5]
[1738809775234,20.02419863,200.3,200.2,199.5]
[1738809775235,14.96869863,200.25,200.2,199.5]
[1738809778035,14.96869863,200.29,200.21,15.96868862]
[1738809778215,14.96869863,200.29,200.21,215.46868862]
[1738809778515,14.96869863,200.29,200.21,214.71967863]